bitfinex-derivatives/quotes_ETHF0:USTF0_20251225
["timestamp","ask_amount","ask_price","bid_price","bid_amount"]
[1766638152561,1.46412849,2944.5,2943.9,3.397]
[1766638153461,3.398,2944.6,2943.9,3.397]
[1766638153661,1.47544891,2944.5,2943.9,3.397]
[1766638153961,1.47544891,2944.5,2944.0,3.397]
[1766638155361,3.398,2944.6,2944.0,3.397]
[1766638155562,1.46925835,2944.5,2944.0,3.397]
[1766638156662,3.398,2944.6,2944.0,3.397]
[1766638156863,1.46028061,2944.5,2944.0,3.397]
[1766638157566,3.398,2944.6,2944.0,3.397]
[1766638157768,1.46028061,2944.5,2944.0,3.397]
[1766638157971,4.88861244,2944.6,2944.0,3.397]
[1766638158770,1.49061244,2944.6,2944.0,3.397]
[1766638170285,1.49061244,2944.6,2943.7,1.16556444]
[1766638170576,1.49061244,2944.6,2943.8,9.399]
[1766638208527,1.49061244,2944.6,2943.9,9.397]
[1766638266590,0.86671244,2944.6,2943.9,9.397]
[1766638266788,0.34231244,2944.6,2943.9,9.397]
[1766638266985,9.382,2944.7,2943.9,9.397]
[1766638267290,1.17061003,2944.6,2943.9,9.397]
[1766638270790,9.03711244,2944.7,2943.9,9.397]
[1766638270983,10.02431257,2944.7,2943.9,10.79205967]
[1766638271797,1.15000013,2944.7,2943.9,10.79205967]
[1766638271991,0.97878304,2944.7,2943.9,10.79205967]
[1766638272195,1.14158304,2944.7,2943.9,10.79205967]
[1766638273594,1.16729854,2944.7,2943.9,10.79205967]
[1766638274789,1.16669594,2944.7,2943.9,10.79205967]
[1766638275798,3.397,2945.0,2943.9,10.79205967]
[1766638275995,1.00803138,2944.9,2943.9,10.79205967]
[1766638276195,3.397,2945.0,2943.9,10.79205967]
[1766638276395,1.00802728,2944.9,2943.9,10.79205967]
[1766638276595,4.55052204,2945.0,2943.9,10.79205967]
[1766638276795,1.00800993,2944.9,2943.9,10.79205967]
[1766638276997,4.55052204,2945.0,2943.9,10.79205967]
[1766638277198,1.00801594,2944.9,2943.9,10.79205967]
[1766638277398,4.55052204,2945.0,2943.9,10.79205967]
[1766638277590,1.00801402,2944.9,2943.9,10.79205967]
[1766638277787,4.55052204,2945.0,2943.9,10.79205967]
[1766638277998,1.00801404,2944.9,2943.9,10.79205967]
[1766638278301,4.55052204,2945.0,2943.9,10.79205967]
[1766638278598,1.00801159,2944.9,2943.9,10.79205967]
[1766638278798,4.55052204,2945.0,2943.9,10.79205967]
[1766638278998,1.00801159,2944.9,2943.9,10.79205967]
[1766638279199,4.55052204,2945.0,2943.9,10.79205967]
[1766638279500,1.00801159,2944.9,2943.9,10.79205967]
[1766638279699,4.55052204,2945.0,2943.9,10.79205967]
[1766638279900,1.00801021,2944.9,2943.9,10.79205967]
[1766638280201,4.55052204,2945.0,2943.9,10.79205967]
[1766638280497,1.00801021,2944.9,2943.9,10.79205967]
[1766638280697,4.55052204,2945.0,2943.9,10.79205967]
[1766638280900,1.00800988,2944.9,2943.9,10.79205967]
[1766638281098,4.55052204,2945.0,2943.9,10.79205967]
[1766638281301,1.00809474,2944.9,2943.9,10.79205967]
[1766638281500,4.55052204,2945.0,2943.9,10.79205967]
[1766638281798,1.00809441,2944.9,2943.9,10.79205967]
[1766638282000,4.55052204,2945.0,2943.9,10.79205967]
[1766638282200,1.00809441,2944.9,2943.9,10.79205967]
[1766638282404,4.55052204,2945.0,2943.9,10.79205967]
[1766638282603,1.0080945,2944.9,2943.9,10.79205967]
[1766638282901,1.0080945,2944.8,2943.9,10.79205967]
[1766638283102,4.55052204,2945.0,2943.9,10.79205967]
[1766638283301,1.00809492,2944.9,2943.9,10.79205967]
[1766638283503,1.00809492,2944.8,2943.9,10.79205967]
[1766638283805,3.397,2944.8,2943.9,10.79205967]
[1766638285817,3.1348,2944.8,2943.9,10.79205967]
[1766638286111,2.9096,2944.8,2943.9,10.79205967]
[1766638294014,2.8467,2944.8,2943.9,10.79205967]
[1766638294215,2.3239,2944.8,2943.9,10.79205967]
[1766638294514,1.8011,2944.8,2943.9,10.79205967]
[1766638331574,10.26559724,2945.3,2943.9,10.79205967]
[1766638332065,10.26559724,2945.3,2943.9,10.96200967]
[1766638332366,1.13836187,2945.2,2943.9,10.96200967]
[1766638332868,0.45886187,2945.2,2944.0,0.16995]
[1766638333166,0.13706187,2945.2,2944.0,0.16995]
[1766638334270,0.13706187,2945.2,2944.0,6.53231223]
[1766638336471,0.00384471,2945.5,2944.0,6.36236223]
[1766638336671,1.15443817,2945.6,2944.0,6.36236223]
[1766638336871,1.15443817,2945.6,2944.2,0.16994]
[1766638337171,1.15443817,2945.6,2944.3,9.388]
[1766638337470,9.372,2945.8,2944.4,8.493]
[1766638337671,9.3749524,2945.8,2944.4,8.493]
[1766638338264,1.15422721,2945.6,2944.4,8.493]
[1766638339268,9.3749524,2945.8,2944.4,8.493]
[1766638339568,10.5114744,2945.8,2944.4,8.493]
[1766638352581,10.5114744,2945.8,2944.5,6.021]
[1766638352875,10.5114744,2945.8,2944.6,3.396]
[1766638353076,10.5114744,2945.8,2944.9,0.00509476]
[1766638353281,10.5114744,2945.8,2945.0,9.419]
[1766638373095,10.5114744,2945.8,2945.0,6.023]
[1766638373301,10.5114744,2945.8,2945.1,3.396]
[1766638377897,10.5114744,2945.8,2945.0,6.023]
[1766638378201,10.5114744,2945.8,2945.2,3.396]
[1766638382606,10.5114744,2945.8,2945.2,2.6178]
[1766638382806,10.5114744,2945.8,2945.2,2.5184]
[1766638383407,10.5114744,2945.8,2945.2,2.419]
[1766638383608,10.5114744,2945.8,2945.2,2.3196]
[1766638383908,10.5114744,2945.8,2945.2,2.1208]
[1766638408738,10.5114744,2945.8,2945.2,1.961]
[1766638408938,10.5114744,2945.8,2945.2,1.8012]
[1766638409237,10.5114744,2945.8,2945.2,1.7018]
[1766638409637,10.5114744,2945.8,2945.2,1.6024]
[1766638409830,10.5114744,2945.8,2945.2,1.4036]
[1766638410538,10.5114744,2945.8,2945.2,1.1444]
[1766638410738,10.5114744,2945.8,2945.2,0.6262]
[1766638411037,10.5114744,2945.8,2945.2,0.108]
[1766638422750,10.5114744,2945.8,2945.1,3.396]
[1766638422957,10.5114744,2945.8,2945.1,2.8778]
[1766638423251,10.5114744,2945.8,2945.1,2.3596]
[1766638429059,1.1394744,2945.8,2945.1,2.3596]
[1766638429261,6.017,2945.7,2945.1,2.3596]
[1766638437272,6.017,2945.7,2945.0,1.38627393]
[1766638437571,6.017,2945.7,2945.1,3.396]
[1766638442874,6.017,2945.7,2944.9,0.00509476]
[1766638443073,6.017,2945.7,2945.0,3.396]
[1766638443275,6.017,2945.7,2945.0,4.78406016]
[1766638444674,6.017,2945.7,2945.0,4.77512018]
[1766638444882,6.017,2945.7,2945.0,3.396]
[1766638445375,6.017,2945.7,2945.0,4.77512018]
[1766638445977,6.017,2945.7,2945.0,4.7664388]
[1766638446677,6.017,2945.7,2945.0,3.396]
[1766638446877,6.017,2945.7,2945.0,4.7664388]
[1766638447580,6.017,2945.7,2945.0,4.7727704]
[1766638448380,6.017,2945.7,2945.0,4.75483168]
[1766638449080,6.017,2945.7,2945.0,3.396]
[1766638450582,6.017,2945.7,2945.0,4.73844114]
[1766638452684,6.017,2945.7,2945.0,3.396]
[1766638453486,6.017,2945.7,2945.0,4.77607155]
[1766638453978,6.017,2945.7,2945.0,4.73735974]
[1766638455378,6.017,2945.7,2945.0,4.76774405]
[1766638456388,6.017,2945.7,2945.0,4.7646881]
[1766638456690,6.017,2945.7,2945.0,3.396]
[1766638456987,6.017,2945.7,2945.0,4.73818094]
[1766638457879,6.017,2945.7,2945.0,4.74513388]
[1766638458687,6.017,2945.7,2945.0,3.396]
[1766638459684,6.017,2945.7,2945.0,4.71388109]
[1766638459883,6.017,2945.7,2945.0,3.396]
[1766638460384,6.017,2945.7,2945.0,4.73887815]
[1766638460385,7.14170759,2945.7,2945.0,4.73887815]
[1766638461488,7.14170759,2945.7,2945.0,3.396]
[1766638461790,7.14170759,2945.7,2945.0,4.74762592]
[1766638462590,7.14170759,2945.7,2945.0,3.396]
[1766638462799,7.14170759,2945.7,2945.0,4.75402008]
[1766638464096,7.14170759,2945.7,2945.0,4.7183169]
[1766638464694,7.14170759,2945.7,2945.0,3.396]
[1766638465595,7.14170759,2945.7,2945.0,4.7183169]
[1766638465892,7.14752398,2945.7,2945.0,3.396]
[1766638466092,7.14752398,2945.7,2945.0,4.7403142]
[1766638468094,7.15364201,2945.7,2945.0,4.72774097]
[1766638468494,7.15364201,2945.7,2945.0,3.396]
[1766638468697,7.15364201,2945.7,2945.0,4.72774097]
[1766638470899,7.1235311,2945.7,2945.0,4.75380418]
[1766638471599,6.017,2945.7,2945.0,3.396]
[1766638471897,7.1235311,2945.7,2945.0,4.75380418]
[1766638474003,7.14189425,2945.7,2945.0,4.7090786]
[1766638474601,6.017,2945.7,2945.0,3.396]
[1766638474801,7.14189425,2945.7,2945.0,4.7090786]
[1766638475005,7.14789582,2945.7,2945.0,4.72206408]
[1766638475196,6.017,2945.7,2945.0,3.396]
[1766638475396,7.14789582,2945.7,2945.0,4.72206408]
[1766638476805,6.017,2945.7,2945.0,3.396]
[1766638476996,7.13517559,2945.7,2945.0,4.74732589]
[1766638477606,6.017,2945.7,2945.0,3.396]
[1766638477807,7.13517559,2945.7,2945.0,4.74732589]
[1766638478108,7.13016949,2945.7,2945.0,4.73542432]
[1766638479107,6.017,2945.7,2945.0,3.396]
[1766638479312,7.11332195,2945.7,2945.0,4.73300956]
[1766638480614,6.017,2945.7,2945.0,3.396]
[1766638480815,7.14531975,2945.7,2945.0,4.71423113]
[1766638482818,6.017,2945.7,2945.0,3.396]
[1766638483030,7.13650234,2945.7,2945.0,4.73098051]
[1766638483417,6.017,2945.7,2945.0,3.396]
[1766638483618,7.13650234,2945.7,2945.0,4.73098051]
[1766638484218,7.11162623,2945.7,2945.0,4.71296991]
[1766638485820,7.1183205,2945.7,2945.0,4.73782938]
[1766638486621,6.017,2945.7,2945.0,3.396]
[1766638486811,7.1482002,2945.7,2945.0,4.74249411]
[1766638488823,6.017,2945.7,2945.0,3.396]
[1766638489024,7.11936984,2945.7,2945.0,4.70807668]
[1766638489627,6.017,2945.7,2945.0,3.396]
[1766638489924,7.11936984,2945.7,2945.0,4.70807668]
[1766638490221,6.017,2945.7,2945.0,3.396]
[1766638490424,7.11390205,2945.7,2945.0,4.72807396]
[1766638491726,7.10961899,2945.7,2945.0,4.70388422]
[1766638492716,7.10605176,2945.7,2945.0,4.74221823]
[1766638494124,6.017,2945.7,2945.0,3.396]
[1766638494327,7.11530529,2945.7,2945.0,4.7495915]
[1766638494824,6.017,2945.7,2945.0,3.396]
[1766638495025,7.11530529,2945.7,2945.0,4.7495915]
[1766638495523,6.017,2945.7,2945.0,3.396]
[1766638495724,7.14772441,2945.7,2945.0,4.71633906]
[1766638497417,7.12494043,2945.7,2945.0,4.72171805]
[1766638498414,7.10755035,2945.7,2945.0,4.73938513]
[1766638498617,6.017,2945.7,2945.0,3.396]
[1766638499724,3.3989524,2945.8,2945.0,3.396]
[1766638499923,4.48950275,2945.8,2945.0,4.73938513]
[1766638500927,4.48950275,2945.8,2945.0,4.75319272]
[1766638502013,4.48950275,2945.8,2945.0,3.396]
[1766638503028,4.48950275,2945.8,2945.0,4.73173304]
[1766638503823,1.09350275,2945.8,2945.0,4.73173304]
[1766638504028,3.396,2946.1,2945.0,3.396]
[1766638504232,1.11681633,2945.8,2945.0,4.7282635]
[1766638504430,4.51266215,2946.1,2945.0,4.7282635]
[1766638504631,3.396,2946.1,2945.0,4.7282635]
[1766638504930,3.39864146,2946.1,2945.0,4.7282635]
[1766638505131,4.51530361,2946.1,2945.0,4.7282635]
[1766638505629,3.39864146,2946.1,2945.0,4.7282635]
[1766638506834,4.52084642,2946.1,2945.0,4.7282635]
[1766638507728,4.50811766,2946.1,2945.0,4.7282635]
[1766638508225,4.52578888,2946.1,2945.0,4.7282635]
[1766638509139,3.39864146,2946.1,2945.0,4.7282635]
[1766638509328,4.51162585,2946.1,2945.0,4.7282635]
[1766638510536,4.53405887,2946.1,2945.0,4.7282635]
[1766638510729,3.39864146,2946.1,2945.0,4.7282635]
[1766638511837,4.53405887,2946.1,2945.0,4.7282635]
[1766638512841,3.39864146,2946.1,2945.0,4.7282635]
[1766638513438,4.51104277,2946.1,2945.0,4.7282635]
[1766638513641,3.39864146,2946.1,2945.0,4.7282635]
[1766638515043,4.51104277,2946.1,2945.1,8.49]
[1766638516744,3.39864146,2946.1,2945.1,8.49]
[1766638516940,4.49777839,2946.1,2945.1,8.49]
[1766638517743,3.39864146,2946.1,2945.1,8.49]
[1766638517950,4.5037951,2946.1,2945.1,8.49]
[1766638518943,3.39864146,2946.1,2945.1,8.49]
[1766638519142,4.49617349,2946.1,2945.1,8.49]
[1766638519639,3.39864146,2946.1,2945.1,8.49]
[1766638520035,4.49617349,2946.1,2945.1,8.49]
[1766638520941,4.50342303,2946.1,2945.2,9.405]
[1766638521133,4.50342303,2946.1,2945.0,1.3322635]
[1766638521336,4.50342303,2946.1,2945.1,9.405]
[1766638522347,4.51808513,2946.1,2945.1,9.405]
[1766638522641,3.39864146,2946.1,2945.1,9.405]
[1766638524144,4.51808513,2946.1,2945.1,9.405]
[1766638525046,4.52078801,2946.1,2945.1,9.405]
[1766638525549,4.50070453,2946.1,2945.1,9.405]
[1766638526751,4.48659385,2946.1,2945.1,9.405]
[1766638527550,4.48659385,2946.1,2945.0,1.3322635]
[1766638527741,4.49865166,2946.1,2945.1,9.405]
[1766638536154,4.49865166,2946.1,2945.0,1.3322635]
[1766638536454,4.49865166,2946.1,2945.1,9.405]
[1766638537656,4.49865166,2946.1,2945.0,0.0231]
[1766638537958,4.49865166,2946.1,2945.1,3.396]
[1766638538457,4.49865166,2946.1,2945.0,1.30018363]
[1766638538658,4.49865166,2946.1,2945.1,3.396]
[1766638539156,1.00366156,2946.0,2945.1,3.396]
[1766638539456,4.49865166,2946.1,2945.1,3.396]
[1766638539759,1.00365034,2946.0,2945.1,3.396]
[1766638540059,4.49865166,2946.1,2945.1,3.396]
[1766638540259,1.00362752,2946.0,2945.1,3.396]
[1766638540448,4.52175167,2946.1,2945.1,3.396]
[1766638540654,1.00362752,2946.0,2945.1,3.396]
[1766638540960,4.49865166,2946.1,2945.1,3.396]
[1766638541154,1.00362792,2946.0,2945.1,3.396]
[1766638541348,4.49865166,2946.1,2945.1,3.396]
[1766638541550,1.0036228,2946.0,2945.1,3.396]
[1766638541753,4.49865166,2946.1,2945.1,3.396]
[1766638541954,1.00360382,2946.0,2945.1,3.396]
[1766638542160,4.49865166,2946.1,2945.1,3.396]
[1766638542360,1.00363441,2946.0,2945.1,3.396]
[1766638542561,4.49865166,2946.1,2945.1,3.396]
[1766638542858,1.0036347,2946.0,2945.1,3.396]
[1766638543061,4.49865166,2946.1,2945.1,3.396]
[1766638543256,1.00368461,2946.0,2945.1,3.396]
[1766638543459,3.396,2945.9,2945.1,3.396]
[1766638562881,4.51007528,2945.9,2945.1,4.70790495]
[1766638563171,4.51006405,2945.9,2945.1,4.70789172]
[1766638564280,4.47054933,2945.9,2945.1,4.71041825]
[1766638564880,3.396,2945.9,2945.1,3.396]
[1766638565378,3.396,2945.9,2945.1,4.71041825]
[1766638565379,4.47054933,2945.9,2945.1,4.71041825]
[1766638567090,3.396,2945.9,2945.1,3.396]
[1766638567282,4.49078065,2945.9,2945.1,4.72671755]
[1766638567887,3.396,2945.9,2945.1,3.396]
[1766638569088,3.396,2945.9,2945.1,4.72671755]
[1766638569089,4.49078065,2945.9,2945.1,4.72671755]
[1766638570880,4.49078065,2945.9,2945.1,3.396]
[1766638571085,3.396,2945.9,2945.1,3.396]
[1766638573096,4.48563455,2945.9,2945.1,4.69609654]
[1766638573596,4.46426749,2945.9,2945.1,4.64710305]
[1766638573893,3.396,2945.9,2945.1,3.396]
[1766638575001,4.46426749,2945.9,2945.1,4.64710305]
[1766638576697,3.396,2945.9,2945.1,3.396]
[1766638576891,4.46859248,2945.9,2945.1,4.6852681]
[1766638579099,3.396,2945.9,2945.1,3.396]
[1766638579398,4.43733364,2945.9,2945.1,4.65903239]
[1766638579997,3.396,2945.9,2945.1,3.396]
[1766638580201,4.43733364,2945.9,2945.1,4.65903239]
[1766638580498,4.44140892,2945.9,2945.1,4.67728137]
[1766638582796,4.43939247,2945.9,2945.1,4.64867941]
[1766638584204,4.4618642,2945.9,2945.1,4.68328101]
[1766638585208,4.43832457,2945.9,2945.1,4.68430379]
[1766638586004,3.396,2945.9,2945.1,3.396]
[1766638586205,4.43832457,2945.9,2945.1,4.68430379]
[1766638588506,3.396,2945.9,2945.1,3.396]
[1766638588705,4.45576309,2945.9,2945.1,4.64342118]
[1766638589004,3.396,2945.9,2945.1,3.396]
[1766638589205,4.45576309,2945.9,2945.1,4.64342118]
[1766638591203,4.47020585,2945.9,2945.1,4.65734864]
[1766638591709,3.396,2945.9,2945.1,3.396]
[1766638592307,4.47020585,2945.9,2945.1,4.65734864]
[1766638593307,3.396,2945.9,2945.1,3.396]
[1766638593508,4.38765831,2945.9,2945.1,4.59134996]
[1766638594508,4.37777611,2945.9,2945.1,4.57047585]
[1766638595009,3.396,2945.9,2945.1,3.396]
[1766638595210,4.37777611,2945.9,2945.1,4.57047585]
[1766638595412,4.38609917,2945.9,2945.1,4.56172206]
[1766638597210,4.38326328,2945.9,2945.1,4.56875166]
[1766638598015,3.396,2945.9,2945.1,3.396]
[1766638598205,4.37148465,2945.9,2945.1,4.59415228]
[1766638599112,3.396,2945.9,2945.1,3.396]
[1766638599303,4.38184531,2945.9,2945.1,4.60532565]
[1766638601017,3.396,2945.9,2945.1,3.396]
[1766638601217,4.36864831,2945.9,2945.1,4.5969077]
[1766638602921,4.38669373,2945.9,2945.1,4.60464074]
[1766638603221,3.396,2945.9,2945.1,3.396]
[1766638603520,4.38669373,2945.9,2945.1,4.60464074]
[1766638604121,3.396,2945.9,2945.1,3.396]
[1766638604422,4.39786148,2945.9,2945.1,4.59059577]
[1766638605418,4.36941746,2945.9,2945.1,4.57846931]
[1766638606619,3.396,2945.9,2945.1,3.396]
[1766638607124,4.37257526,2945.9,2945.1,4.57536492]
[1766638608819,4.3823797,2945.9,2945.1,4.57377204]
[1766638609220,3.396,2945.9,2945.1,3.396]
[1766638609412,4.3823797,2945.9,2945.1,4.57377204]
[1766638610222,4.3817609,2945.9,2945.1,4.60120444]
[1766638613130,3.396,2945.9,2945.1,3.396]
[1766638614130,4.38095369,2945.9,2945.1,4.59938285]
[1766638615219,3.396,2945.9,2945.1,3.396]
[1766638615421,4.38624242,2945.9,2945.1,4.6027523]
[1766638616229,3.396,2945.9,2945.1,3.396]
[1766638618128,4.30934436,2945.9,2945.1,4.49420024]
[1766638618433,3.396,2945.9,2945.1,3.396]
[1766638619130,4.31890029,2945.9,2945.1,4.47117059]
[1766638619332,3.396,2945.9,2945.1,3.396]
[1766638620427,4.32186292,2945.9,2945.1,4.48970703]
[1766638621232,3.396,2945.9,2945.1,3.396]
[1766638621432,4.30706278,2945.9,2945.1,4.47198944]
[1766638621634,3.396,2945.9,2945.1,3.396]
[1766638622333,4.28956536,2945.9,2945.1,4.47920155]
[1766638624541,4.318604,2945.9,2945.1,4.50876623]
[1766638625243,3.396,2945.9,2945.1,3.396]
[1766638625440,4.318604,2945.9,2945.1,4.50876623]
[1766638627239,3.396,2945.9,2945.1,3.396]
[1766638627438,4.29267497,2945.9,2945.1,4.49535029]
[1766638628338,3.396,2945.9,2945.1,3.396]
[1766638628545,4.29550306,2945.9,2945.1,4.48860106]
[1766638629942,4.29209328,2945.9,2945.1,4.49723552]
[1766638631340,3.396,2945.9,2945.1,3.396]
[1766638631538,4.31334753,2945.9,2945.1,4.48536503]
[1766638633336,4.32080651,2945.9,2945.1,4.47980153]
[1766638634348,3.396,2945.9,2945.1,3.396]
[1766638635950,4.31849793,2945.9,2945.1,4.50519603]
[1766638636652,3.396,2945.9,2945.1,3.396]
[1766638636950,4.25942115,2945.9,2945.1,4.43187911]
[1766638637348,4.27926791,2945.9,2945.1,4.43343858]
[1766638639146,4.26203617,2945.9,2945.1,4.43390227]
[1766638640252,3.396,2945.9,2945.1,3.396]
[1766638640454,4.26222756,2945.9,2945.1,4.42579554]
[1766638643458,4.26066953,2945.9,2945.1,4.45876735]
[1766638645161,4.2655056,2945.9,2945.1,4.46431347]
[1766638645355,3.396,2945.9,2945.1,3.396]
[1766638645560,4.2655056,2945.9,2945.1,4.46431347]
[1766638646360,4.2655056,2945.9,2945.1,1.05730214]
[1766638646561,4.2655056,2945.9,2945.2,9.398]
[1766638647570,4.2655056,2945.9,2944.9,0.00509476]
[1766638647860,1.00757129,2945.8,2944.5,3.396]
[1766638648164,7.01057129,2945.7,2944.5,3.396]
[1766638648463,4.40357129,2945.6,2944.5,4.45630645]
[1766638648765,0.00509476,2945.3,2944.8,0.00509476]
[1766638648953,3.396,2945.2,2944.5,3.396]
[1766638649154,3.396,2945.2,2944.5,4.42639557]
[1766638649364,3.396,2945.2,2944.5,3.396]
[1766638650061,3.396,2945.2,2944.6,0.00509476]
[1766638653565,4.25686154,2945.2,2944.6,0.00509476]
[1766638654860,4.26665508,2945.2,2944.6,0.00509476]
[1766638655164,3.396,2945.2,2944.6,0.00509476]
[1766638655352,4.26665508,2945.2,2944.6,0.00509476]
[1766638656556,4.25956873,2945.2,2944.6,0.00509476]
[1766638658467,3.396,2945.2,2944.6,0.00509476]
[1766638658667,4.27007227,2945.2,2944.6,0.00509476]
[1766638659166,3.396,2945.2,2944.6,0.00509476]
[1766638659366,4.2576992,2945.2,2944.6,0.00509476]
[1766638659867,4.2556211,2945.2,2944.6,0.00509476]
[1766638661471,3.396,2945.2,2944.6,0.00509476]
[1766638661672,4.26776177,2945.2,2944.6,0.00509476]
[1766638662572,3.396,2945.2,2944.6,0.00509476]
[1766638662872,4.26875712,2945.2,2944.6,0.00509476]
[1766638663373,3.396,2945.2,2944.6,0.00509476]
[1766638663579,4.26875712,2945.2,2944.6,0.00509476]
[1766638663876,4.25393225,2945.2,2944.6,0.00509476]
[1766638664474,3.396,2945.2,2944.6,0.00509476]
[1766638664675,4.25393225,2945.2,2944.6,0.00509476]
[1766638664868,4.25730486,2945.2,2944.6,0.00509476]
[1766638665274,3.396,2945.2,2944.6,0.00509476]
[1766638665475,4.25730486,2945.2,2944.6,0.00509476]
[1766638666576,4.26923245,2945.2,2944.6,0.00509476]
[1766638667474,3.396,2945.2,2944.6,0.00509476]
[1766638667773,4.26063768,2945.2,2944.6,0.00509476]
[1766638668175,4.26063768,2945.2,2944.5,4.44006036]
[1766638668675,4.25723293,2945.2,2944.5,4.41659573]
[1766638669178,4.25723293,2945.2,2944.6,0.00509476]
[1766638670083,4.26655236,2945.2,2944.5,4.2131375]
[1766638670269,4.26655236,2945.2,2944.5,4.1534375]
[1766638670469,3.396,2945.2,2944.5,3.1175]
[1766638670669,4.26655236,2945.2,2944.5,4.1534375]
[1766638670879,4.26655236,2945.2,2944.6,0.00509476]
[1766638671084,4.26190088,2945.2,2944.6,0.00509476]
[1766638672463,3.396,2945.2,2944.6,0.00509476]
[1766638672667,4.25162583,2945.2,2944.6,0.00509476]
[1766638672872,4.25162583,2945.2,2944.5,4.14410752]
[1766638673582,4.25937617,2945.2,2944.5,4.16125967]
[1766638673979,4.25937617,2945.2,2944.6,0.00509476]
[1766638674280,3.396,2945.2,2944.6,0.00509476]
[1766638674695,4.25937617,2945.2,2944.6,0.00509476]
[1766638675381,3.396,2945.2,2944.6,0.00509476]
[1766638675881,4.25615973,2945.2,2944.6,0.00509476]
[1766638676585,4.27577318,2945.2,2944.6,0.00509476]
[1766638677780,4.26743086,2945.2,2944.6,0.00509476]
[1766638678583,4.27049971,2945.2,2944.6,0.00509476]
[1766638679085,4.25591536,2945.2,2944.6,0.00509476]
[1766638681186,4.25591536,2945.2,2944.5,4.15041708]
[1766638681385,4.26912408,2945.2,2944.5,4.1591146]
[1766638681889,4.14098054,2945.2,2944.5,4.00624264]
[1766638682386,4.14098054,2945.2,2944.6,0.00339652]
[1766638682588,4.14210562,2945.2,2944.6,0.00339652]
[1766638682786,4.14210562,2945.2,2944.5,3.99352579]
[1766638683188,4.14210562,2945.2,2944.5,3.73502579]
[1766638683387,4.14210562,2945.2,2944.5,3.47652579]
[1766638683686,4.13107489,2945.2,2944.5,3.4834572]
[1766638685188,4.13670513,2945.2,2944.5,3.47516277]
[1766638687392,4.1498203,2945.2,2944.5,3.48752538]
[1766638688491,3.396,2945.2,2944.5,2.6005]
[1766638689091,4.13220065,2945.2,2944.5,3.47639875]
[1766638691391,1.01286264,2945.1,2944.5,3.47639875]
[1766638691590,4.12885965,2945.2,2944.5,3.48073066]
[1766638691889,1.01286265,2945.1,2944.5,3.48073066]
[1766638692090,4.12885965,2945.2,2944.5,3.48073066]
[1766638692291,1.01283433,2945.1,2944.5,3.48073066]
[1766638692592,4.12885965,2945.2,2944.5,3.48073066]
[1766638692794,1.01284116,2945.1,2944.5,3.50573946]
[1766638693091,4.14481011,2945.2,2944.5,3.50573946]
[1766638693291,1.01281864,2945.1,2944.5,3.50573946]
[1766638693493,3.396,2945.2,2944.5,2.6005]
[1766638693694,1.01282663,2945.1,2944.5,2.6005]
[1766638693896,4.14481011,2945.2,2944.5,3.50573946]
[1766638694088,1.01282663,2945.1,2944.5,3.50573946]
[1766638694287,4.14481011,2945.2,2944.5,3.50573946]
[1766638694488,1.01281767,2945.1,2944.5,2.6005]
[1766638694689,3.396,2945.2,2944.5,2.6005]
[1766638694890,1.01281767,2945.1,2944.5,2.6005]
[1766638695092,4.12614366,2945.2,2944.5,3.4815065]
[1766638695291,1.01280257,2945.1,2944.5,2.6005]
[1766638695587,4.13484267,2945.2,2944.5,3.49011021]
[1766638695782,1.01281413,2945.1,2944.5,2.6005]
[1766638695997,4.13484267,2945.2,2944.5,3.49011021]
[1766638696195,1.73835022,2945.1,2944.5,3.47790181]
[1766638696397,0.7255361,2945.1,2944.5,3.47790181]
[1766638696693,3.396,2945.2,2944.5,2.6005]
[1766638696895,1.73835164,2945.1,2944.5,3.47790181]
[1766638697194,3.396,2945.2,2944.5,2.6005]
[1766638697396,1.01280516,2945.1,2944.5,2.6005]
[1766638697696,0.7442012,2945.1,2944.5,3.47968082]
[1766638698396,0.73058795,2945.1,2944.5,3.47993539]
[1766638699399,3.396,2945.2,2944.5,2.6005]
[1766638699696,1.01283726,2945.1,2944.5,2.6005]
[1766638699897,3.396,2945.2,2944.5,2.6005]
[1766638700202,1.74778631,2945.1,2944.5,3.48496638]
[1766638700399,0.73494907,2945.1,2944.5,3.48496638]
[1766638700600,0.74536418,2945.1,2944.5,3.48734047]
[1766638703501,3.396,2945.2,2944.5,2.6005]
[1766638703703,1.77059286,2945.1,2944.5,2.6005]
[1766638703904,2.8792,2945.2,2944.5,2.6005]
[1766638704202,0.49213863,2945.1,2944.5,3.48602854]
[1766638704402,2.7202,2945.2,2944.5,2.6005]
[1766638704701,0.75053863,2945.1,2944.5,3.48602854]
[1766638705504,2.7202,2945.2,2944.5,2.6005]
[1766638706607,3.45993231,2945.2,2944.5,3.47884228]
[1766638708206,3.46492022,2945.2,2944.5,3.50218777]
[1766638708503,3.46492022,2945.2,2944.5,2.6005]
[1766638708504,2.7202,2945.2,2944.5,2.6005]
[1766638709405,3.46492022,2945.2,2944.5,3.50218777]
[1766638709704,2.7202,2945.2,2944.5,2.6005]
[1766638710296,3.19443146,2945.2,2944.5,3.50024898]
[1766638710605,9.14659476,2945.3,2944.5,2.6005]
[1766638710902,0.49354944,2945.2,2944.5,3.48888092]
[1766638711607,0.00509476,2945.1,2944.6,0.00509476]
[1766638738346,0.00509476,2945.1,2944.5,3.50230667]
[1766638738547,0.00509476,2945.1,2944.5,4.29369985]
[1766638739746,0.00509476,2945.1,2944.5,3.397]
[1766638739952,0.00509476,2945.1,2944.5,4.27430708]
[1766638741353,0.00509476,2945.1,2944.5,4.29282975]
[1766638741647,0.00509476,2945.1,2944.5,5.03935454]
[1766638742446,0.00509476,2945.1,2944.5,5.03375407]
[1766638742640,0.00509476,2945.1,2944.5,4.29282975]
[1766638743351,0.1242,2945.2,2944.5,4.29282975]
[1766638743554,0.87284577,2945.2,2944.5,5.03375407]
[1766638743945,9.14659476,2945.3,2944.5,4.29282975]
[1766638744353,0.00509476,2945.2,2944.6,0.00509476]
[1766638751457,0.00509476,2945.2,2944.7,3.397]
[1766638766169,5.99864146,2946.1,2945.2,0.0008]
[1766638766367,0.89383357,2945.7,2945.0,3.397]
[1766638766564,3.397,2946.0,2945.0,3.397]